fUST/lending_fUST_20240207
["ID","MTS","AMOUNT","RATE_DAILY","PERIOD"]
[313397274,1707293446704,-132.17396474,0.00027397,3]
[313397275,1707293446714,-218.81092535,0.00027519,2]
[313397276,1707293446735,-248.17935805,0.00027519,2]
[313397278,1707293446745,-1121.3968877,0.0002752,2]
[313397367,1707294638251,-718.01783563,0.00024912,2]
[313397368,1707294638260,-155.02790502,0.00024913,4]
[313397369,1707294638269,-1299.82479054,0.00025135,2]
[313397370,1707294638278,-1299.87480797,0.00025135,2]
[313397371,1707294638287,-1433.01124866,0.00025147,2]
[313397372,1707294638296,-296.21181108,0.00025297,2]
[313397373,1707294638306,-1000.0,0.00025845,3]
[313397374,1707294638315,-417.56709941,0.00025853,2]
[313397375,1707294638324,-5000.0,0.00027294,2]
[313397376,1707294638333,-3518.4,0.00027387,3]
[313397377,1707294638342,-2932.0,0.00027387,3]
[313397378,1707294638352,-2443.34,0.00027387,3]
[313397379,1707294638363,-1421.05495356,0.00027387,2]
[313397380,1707294638373,-1290.65162282,0.00027395,2]
[313397381,1707294638381,-1795.60140389,0.00027396,2]
[313397382,1707294638391,-187.4746865,0.00027396,2]
[313397383,1707294638400,-800.76,0.00027397,3]
[313397384,1707294638409,-1689.48,0.00027397,3]
[313397385,1707294638418,-1749.84,0.00027397,3]
[313397386,1707294638427,-500.0,0.00027397,3]
[313397387,1707294638436,-500.0,0.00027397,3]
[313397388,1707294638445,-500.0,0.00027397,3]
[313397389,1707294638455,-1037.39,0.00027397,3]
[313397390,1707294638464,-777.45,0.00027397,3]
[313397391,1707294638473,-500.0,0.00027397,3]
[313397392,1707294638482,-481.81668043,0.00027397,3]
[313397393,1707294638491,-500.0,0.00027397,3]
[313397394,1707294638500,-500.0,0.00027397,3]
[313397395,1707294638510,-500.0,0.00027397,3]
[313397396,1707294638519,-500.0,0.00027397,3]
[313397397,1707294638528,-2157.21,0.00027397,3]
[313397398,1707294638537,-808.17,0.00027397,3]
[313397399,1707294638547,-698.58,0.00027397,3]
[313397400,1707294638556,-2979.02,0.00027397,3]
[313397401,1707294638566,-1083.91,0.00027397,3]
[313397402,1707294638575,-940.09,0.00027397,3]
[313397403,1707294638584,-500.0,0.00027397,2]
[313397404,1707294638593,-1369.78,0.00027397,3]
[313397405,1707294638602,-874.87,0.00027397,3]
[313397406,1707294638613,-5734.2,0.00027397,3]
[313397407,1707294638622,-1641.16,0.00027397,3]
[313397408,1707294638631,-500.0,0.00027397,3]
[313397409,1707294638639,-4632.71204875,0.00027397,3]
[313397410,1707294638651,-968.67795125,0.00027397,3]
[313397411,1707294638660,-144.98893535,0.00027397,3]
[313397442,1707294642792,-969.06106465,0.00027397,3]
[313397443,1707294642802,-793.16,0.00027397,3]
[313397444,1707294642810,-2213.67358405,0.00027397,3]
[313397490,1707295831964,-718.01783563,0.00024713,2]
[313397491,1707295831974,-155.02325349,0.00024714,4]
[313397492,1707295831983,-433.27493019,0.0002517,2]
[313397493,1707295831993,-295.60653799,0.00025297,2]
[313397494,1707295832002,-830.75935317,0.00025575,2]
[313397510,1707295838270,-952.86987331,0.00025575,2]
[313397511,1707295838283,-1216.37077352,0.00025575,2]
[313397512,1707295838292,-1730.7923292,0.00025806,2]
[313397513,1707295838302,-267.8011549,0.0002585,2]
[313397514,1707295838311,-178.95732832,0.00025853,2]
[313397515,1707295838320,-2036.11,0.00027387,3]
[313397516,1707295838331,-248.59916671,0.00027387,3]
[313397517,1707295838347,-638.58561427,0.00027387,3]
[313397527,1707295841343,-809.57521902,0.00027387,3]
[313397528,1707295841353,-1413.97,0.00027387,3]
[313397529,1707295841363,-1178.31,0.00027387,3]
[313397530,1707295841378,-318.21113697,0.00027395,2]
[313397531,1707295841387,-389.43984941,0.00027395,2]
[313397532,1707295841396,-1140.64042297,0.00027396,2]
[313397533,1707295841405,-1013.29431932,0.00027397,2]
[313397534,1707295841415,-622.47720298,0.00027397,2]
[313397535,1707295841424,-10321.20056865,0.00027397,2]
[313397536,1707295841433,-155.02790502,0.00027397,2]
[313397537,1707295841443,-1313.11368672,0.00027397,2]
[313397538,1707295841453,-239.97001572,0.00027397,2]
[313397539,1707295841462,-155.02790502,0.00027397,2]
[313397540,1707295841472,-1652.44337949,0.00027397,2]
[313397541,1707295841481,-344.03161985,0.00027397,2]
[313397542,1707295841490,-155.02790502,0.00027397,2]
[313397543,1707295841499,-1674.91,0.00027397,3]
[313397544,1707295841509,-500.0,0.00027397,3]
[313397545,1707295841518,-500.0,0.00027397,3]
[313397546,1707295841527,-500.0,0.00027397,3]
[313397547,1707295841537,-500.0,0.00027397,3]
[313397548,1707295841547,-438.80177239,0.00027397,3]
[313397549,1707295841556,-1676.93,0.00027397,3]
[313397550,1707295841566,-500.0,0.00027397,2]
[313397551,1707295841575,-500.0,0.00027397,3]
[313397552,1707295841584,-669.47,0.00027397,3]
[313397553,1707295841695,-1015.0,0.00027397,3]
[313397554,1707295841709,-766.61,0.00027397,3]
[313397555,1707295841719,-500.0,0.00027397,3]
[313397556,1707295841728,-748.82,0.00027397,3]
[313397557,1707295841737,-1517.74710309,0.00027397,3]
[313397595,1707295846084,-155.02325349,0.00027396,4]
[313397596,1707295846093,-249.89471288,0.00027397,3]
[313397664,1707297038307,-155.01860223,0.00024575,4]
[313397665,1707297038316,-169.684484,0.00024576,2]
[313397666,1707297038324,-1633.43459607,0.00025164,2]
[313397667,1707297038333,-574.32387099,0.00025169,2]
[313397668,1707297038341,-262.49235683,0.00025297,2]
[313397669,1707297038349,-2074.17,0.0002679,3]
[313397670,1707297038357,-1194.01584489,0.0002679,3]
[313397680,1707297041368,-252.30064042,0.000268,2]
[313397695,1707297043193,-293.26520376,0.000268,2]
[313397696,1707297043204,-477.27450965,0.000268,2]
[313397697,1707297043215,-4389.04377579,0.000268,2]
[313397698,1707297043225,-17945.78268003,0.000268,2]
[313397701,1707297046234,-1529.48,0.0002679,3]
[313397702,1707297046244,-10908.52,0.000268,2]
[313397769,1707298232349,-481.47211308,0.00024276,2]
[313397770,1707298232360,-718.01783563,0.00024277,2]
[313397771,1707298232370,-155.02635448,0.00024278,4]
[313397772,1707298232381,-310.05270899,0.00024282,2]
[313397773,1707298232391,-166.920566,0.00024291,2]
[313397774,1707298232401,-174.99490456,0.000247,2]
[313397775,1707298232412,-501.14017841,0.00025175,2]
[313397776,1707298232425,-861.94535504,0.00025175,2]
[313397791,1707298239647,-46.52408601,0.00025175,2]
[313397792,1707298239659,-460.74313213,0.00025175,2]
[313397793,1707298239670,-1459.61375063,0.00026799,2]
[313397794,1707298239684,-6626.5022671,0.00026799,2]
[313397818,1707298241766,-2233.19520535,0.00026799,2]
[313397830,1707298245641,-1274.56,0.00026789,3]
[313397831,1707298245650,-155.02635448,0.00026798,4]
[313397832,1707298245659,-2146.2711546,0.00026799,2]
[313397833,1707298245671,-6158.08458461,0.00026799,2]
[313397834,1707298245681,-3174.58697082,0.00026799,2]
[313397851,1707298246596,-6144.0,0.00026799,2]
[313397903,1707299432521,-481.47211308,0.00023623,2]
[313397904,1707299432530,-57.04532337,0.00023624,2]
[313397905,1707299432542,-660.97251226,0.00023624,2]
[313397906,1707299432554,-155.02170304,0.00023624,4]
[313397907,1707299432564,-166.666666,0.00023627,2]
[313397908,1707299432573,-2419.63858239,0.00024056,2]
[313397909,1707299432585,-618.09274011,0.00024056,2]
[313397910,1707299432596,-4943.94102097,0.00024056,2]
[313397911,1707299432605,-600.67389396,0.00024057,2]
[313397913,1707299432614,-192.830686,0.00024316,2]
[313397914,1707299432623,-7506.28801908,0.00024338,2]
[313397917,1707299432635,-4320.25148285,0.00024338,2]
[313397940,1707299438630,-3159.59859657,0.00024338,2]
[313397941,1707299438640,-3049.23235038,0.00025181,2]
[313397942,1707299438649,-1444.67987208,0.00025187,2]
[313397943,1707299438659,-308.28526714,0.00025862,2]
[313397944,1707299438668,-200.0,0.0002647,15]
[313397945,1707299438677,-879.15822948,0.000267,2]
[313397946,1707299438687,-1559.29,0.00026788,3]
[313397947,1707299438697,-426.88835692,0.00026797,2]
[313397948,1707299438706,-3977.44618093,0.00026797,2]
[313397949,1707299438716,-5219.85027609,0.00026797,2]
[313397951,1707299438726,-182.92205178,0.00026798,2]
[313397952,1707299438735,-276.88321802,0.00026798,2]
[313397954,1707299438744,-500.0,0.00026798,2]
[313397956,1707299438753,-500.0,0.00026798,2]
[313397957,1707299438762,-1049.87106957,0.00026798,2]
[313397958,1707299438772,-500.0,0.00026798,2]
[313397959,1707299438781,-1049.87106957,0.00026798,2]
[313397960,1707299438790,-157.28603473,0.00026798,2]
[313397961,1707299438799,-1049.87106957,0.00026798,2]
[313397962,1707299438809,-294.7708855,0.00026798,2]
[313397963,1707299438819,-1049.87106957,0.00026798,2]
[313397964,1707299438828,-1049.87106957,0.00026798,2]
[313397965,1707299438837,-1049.87106957,0.00026798,2]
[313397966,1707299438847,-1049.87106957,0.00026798,2]
[313397967,1707299438856,-1049.87106957,0.00026798,2]
[313397968,1707299438865,-1049.87106957,0.00026798,2]
[313397970,1707299438875,-1049.87106957,0.00026798,2]
[313397973,1707299438894,-1049.87106957,0.00026798,2]
[313397974,1707299438905,-1049.87106957,0.00026798,2]
[313397975,1707299438915,-1049.87106957,0.00026798,2]
[313397976,1707299438925,-1049.87106957,0.00026798,2]
[313397977,1707299438935,-1049.87106957,0.00026798,2]
[313397978,1707299438944,-1049.87106957,0.00026798,2]
[313397979,1707299438953,-1049.87106957,0.00026798,2]
[313397980,1707299438963,-1049.87106957,0.00026798,2]
[313397981,1707299438972,-1049.87106957,0.00026798,2]
[313397982,1707299438982,-1049.87106957,0.00026798,2]
[313397983,1707299438991,-1049.87106957,0.00026798,2]
[313397984,1707299439001,-1049.87106957,0.00026798,2]
[313397985,1707299439010,-1049.87106957,0.00026798,2]
[313397986,1707299439019,-1049.87106957,0.00026798,2]
[313397987,1707299439028,-1049.87106957,0.00026798,2]
[313397988,1707299439038,-1049.87106957,0.00026798,2]
[313397989,1707299439047,-1049.87106957,0.00026798,2]
[313397990,1707299439057,-1049.87106957,0.00026798,2]
[313397991,1707299439066,-1049.87106957,0.00026798,2]
[313397992,1707299439076,-1049.87106957,0.00026798,2]
[313397993,1707299439085,-1049.87106957,0.00026798,2]
[313397994,1707299439094,-1049.87106957,0.00026798,2]
[313397995,1707299439103,-1049.87106957,0.00026798,2]
[313397996,1707299439113,-1049.87106957,0.00026798,2]
[313397997,1707299439122,-1049.87106957,0.00026798,2]
[313397998,1707299439131,-1049.87106957,0.00026798,2]
[313397999,1707299439140,-1049.87106957,0.00026798,2]
[313398000,1707299439149,-1049.87106957,0.00026798,2]
[313398001,1707299439159,-1049.87106957,0.00026798,2]
[313398002,1707299439169,-1049.87106957,0.00026798,2]
[313398003,1707299439178,-1049.87106957,0.00026798,2]
[313398004,1707299439187,-1049.87106957,0.00026798,2]
[313398005,1707299439197,-1049.87106957,0.00026798,2]
[313398006,1707299439206,-1049.87106957,0.00026798,2]
[313398007,1707299439215,-1049.87106957,0.00026798,2]
[313398008,1707299439357,-1049.87106957,0.00026798,2]
[313398009,1707299439367,-1049.87106957,0.00026798,2]
[313398010,1707299439377,-1049.87106957,0.00026798,2]
[313398011,1707299439386,-1049.87106957,0.00026798,2]
[313398012,1707299439395,-1049.87106957,0.00026798,2]
[313398013,1707299439406,-1049.87106957,0.00026798,2]
[313398014,1707299439417,-1049.87106957,0.00026798,2]
[313398015,1707299439427,-1049.87106957,0.00026798,2]
[313398016,1707299439438,-1049.87106957,0.00026798,2]
[313398017,1707299439449,-1049.87106957,0.00026798,2]
[313398018,1707299439459,-1049.87106957,0.00026798,2]
[313398019,1707299439470,-1049.87106957,0.00026798,2]
[313398020,1707299439478,-1049.87106957,0.00026798,2]
[313398021,1707299439488,-1049.87106957,0.00026798,2]
[313398022,1707299439497,-1049.87106957,0.00026798,2]
[313398023,1707299439506,-1049.87106957,0.00026798,2]
[313398024,1707299439514,-1049.87106957,0.00026798,2]
[313398025,1707299439522,-1049.87106957,0.00026798,2]
[313398026,1707299439532,-1049.87106957,0.00026798,2]
[313398027,1707299439543,-1023.62429282,0.00026798,2]
[313398028,1707299439553,-1023.62429282,0.00026798,2]
[313398029,1707299439565,-1023.62429282,0.00026798,2]
[313398030,1707299439573,-1023.62429282,0.00026798,2]
[313398031,1707299439582,-616.70199289,0.00026798,2]
[313398032,1707299439597,-406.92229993,0.00026798,2]
[313398033,1707299439606,-111.94044935,0.00026798,2]
[313398049,1707299443545,-379.46295087,0.00026798,2]
[313398054,1707299446651,-2973.47,0.00026789,3]
[313398055,1707299446662,-718.01783563,0.00026797,2]
[313398056,1707299446672,-2402.51216337,0.00026797,2]
[313398085,1707300637928,-155.02170304,0.00024116,4]
[313398086,1707300637939,-298.19948269,0.00024117,2]
[313398087,1707300637952,-322.87836702,0.00024117,2]
[313398088,1707300637962,-293.74859472,0.00024698,2]
[313398089,1707300637972,-1670.67146071,0.00025198,2]
[313398090,1707300637983,-1048.52284036,0.00025198,2]
[313398091,1707300637993,-871.01889948,0.00025198,2]
[313398092,1707300638002,-2218.0503379,0.0002524,2]
[313398093,1707300638012,-369.51999011,0.00026696,3]
[313398094,1707300638021,-791.24240655,0.000267,2]
[313398095,1707300638030,-2477.89,0.00026787,3]
[313398096,1707300638039,-17895.56869874,0.00026795,2]
[313398097,1707300638049,-500.0,0.00026796,2]
[313398098,1707300638058,-500.0,0.00026796,2]
[313398099,1707300638067,-500.0,0.00026796,2]
[313398100,1707300638076,-500.0,0.00026796,2]
[313398101,1707300638085,-500.0,0.00026796,2]
[313398102,1707300638094,-500.0,0.00026796,2]
[313398103,1707300638104,-500.0,0.00026796,2]
[313398104,1707300638113,-500.0,0.00026796,2]
[313398105,1707300638122,-500.0,0.00026796,2]
[313398106,1707300638132,-500.0,0.00026796,2]
[313398107,1707300638141,-500.0,0.00026796,2]
[313398108,1707300638151,-500.0,0.00026796,2]
[313398109,1707300638160,-500.0,0.00026796,2]
[313398110,1707300638169,-500.0,0.00026796,2]
[313398111,1707300638178,-467.25027602,0.00026796,2]
[313398112,1707300638188,-500.0,0.00026796,2]
[313398113,1707300638197,-500.0,0.00026796,2]
[313398114,1707300638206,-500.0,0.00026796,2]
[313398115,1707300638215,-500.0,0.00026796,2]
[313398116,1707300638224,-500.0,0.00026796,2]
[313398117,1707300638234,-500.0,0.00026796,2]
[313398118,1707300638243,-500.0,0.00026796,2]
[313398119,1707300638252,-500.0,0.00026796,2]
[313398120,1707300638261,-500.0,0.00026796,2]
[313398121,1707300638270,-500.0,0.00026796,2]
[313398122,1707300638279,-500.0,0.00026796,2]
[313398123,1707300638288,-500.0,0.00026796,2]
[313398124,1707300638298,-500.0,0.00026796,2]
[313398125,1707300638307,-500.0,0.00026796,2]
[313398126,1707300638316,-500.0,0.00026796,2]
[313398127,1707300638325,-500.0,0.00026796,2]
[313398128,1707300638334,-500.0,0.00026796,2]
[313398129,1707300638343,-500.0,0.00026796,2]
[313398130,1707300638352,-500.0,0.00026796,2]
[313398131,1707300638361,-500.0,0.00026796,2]
[313398132,1707300638370,-500.0,0.00026796,2]
[313398133,1707300638379,-500.0,0.00026796,2]
[313398134,1707300638388,-500.0,0.00026796,2]
[313398135,1707300638397,-500.0,0.00026796,2]
[313398136,1707300638406,-500.0,0.00026796,2]
[313398137,1707300638415,-500.0,0.00026796,2]
[313398138,1707300638424,-500.0,0.00026796,2]
[313398139,1707300638433,-500.0,0.00026796,2]
[313398140,1707300638442,-500.0,0.00026796,2]
[313398141,1707300638451,-500.0,0.00026796,2]
[313398142,1707300638460,-500.0,0.00026796,2]
[313398143,1707300638470,-500.0,0.00026796,2]
[313398144,1707300638479,-500.0,0.00026796,2]
[313398145,1707300638488,-500.0,0.00026796,2]
[313398146,1707300638497,-500.0,0.00026796,2]
[313398147,1707300638506,-500.0,0.00026796,2]
[313398148,1707300638515,-500.0,0.00026796,2]
[313398149,1707300638524,-500.0,0.00026796,2]
[313398150,1707300638533,-500.0,0.00026796,2]
[313398151,1707300638542,-500.0,0.00026796,2]
[313398152,1707300638551,-500.0,0.00026796,2]
[313398153,1707300638560,-346.7250276,0.00026796,2]
[313398154,1707300638663,-275.53784936,0.00026797,2]
[313398155,1707300638673,-301.67230248,0.00026797,2]
[313398156,1707300638682,-717.0537545,0.00026797,2]
[313398157,1707300638691,-239.97001572,0.00026797,2]
[313398158,1707300638700,-1313.11368672,0.00026797,2]
[313398159,1707300638709,-1652.44337949,0.00026797,2]
[313398160,1707300638719,-622.47720298,0.00026797,2]
[313398161,1707300638730,-1013.29431932,0.00026797,2]
[313398162,1707300638739,-155.02170304,0.00026797,2]
[313398163,1707300638748,-155.02170304,0.00026797,2]
[313398164,1707300638757,-344.03161985,0.00026797,2]
[313398165,1707300638766,-10321.20056865,0.00026797,2]
[313398166,1707300638775,-21454.23348077,0.00026797,7]
[313398167,1707300638787,-9566.79249852,0.00026797,7]
[313398168,1707300638799,-48005.2001,0.00026797,7]
[313398169,1707300638811,-21431.24534224,0.00026797,7]
[313398199,1707300640888,-2171.34,0.00026787,3]
[313398200,1707300640897,-3217.96,0.00026797,7]
[313398202,1707300641069,-92678.59475589,0.00026797,7]
[313398270,1707300642754,-152.05651612,0.00026743,2]
[313398273,1707300642763,-1002.96394626,0.00026797,7]
[313398283,1707300642807,-25710.5,0.00026797,7]
[313398287,1707300642819,-5914.7247732,0.00026797,7]
[313398550,1707301831899,-155.01860223,0.00024116,4]
[313398553,1707301831909,-1201.66555398,0.00024696,2]
[313398555,1707301831918,-467.03225405,0.00024697,2]
[313398557,1707301831927,-341.71092063,0.00025222,2]
[313398559,1707301831936,-1093.90750431,0.00025611,2]
[313398561,1707301831947,-993.65110577,0.00025611,2]
[313398563,1707301831959,-2766.61711932,0.00025611,2]
[313398565,1707301831968,-872.61,0.00026787,3]
[313398567,1707301831976,-500.0,0.00026795,2]
[313398569,1707301831985,-1764.51810886,0.00026795,2]
[313398571,1707301831994,-1893.52994018,0.00026795,2]
[313398573,1707301832004,-327.47555768,0.00026795,2]
[313398575,1707301832014,-162.84486275,0.00026796,2]
[313398577,1707301832023,-1586.31930013,0.00026796,2]
[313398579,1707301832032,-42040.44348322,0.00026797,7]
[313398581,1707301832043,-4370.41728601,0.00026797,7]
[313398723,1707301841159,-1664.01,0.00026787,3]
[313398724,1707301841169,-489.94,0.00026797,7]
[313398725,1707301841180,-2115.64278898,0.00026797,7]
[313398726,1707301841192,-2403.64566873,0.00026797,7]
[313398727,1707301841204,-4827.18301245,0.00026797,7]
[313398728,1707301841213,-344.03161985,0.00026797,2]
[313398729,1707301841222,-156.30359986,0.00026797,2]
[313398730,1707301841232,-1652.44337949,0.00026797,2]
[313398731,1707301841242,-1013.29431932,0.00026797,2]
[313398732,1707301841250,-10321.20056865,0.00026797,2]
[313398733,1707301841260,-291.60083637,0.00026797,2]
[313398734,1707301841270,-622.47720298,0.00026797,2]
[313398735,1707301841279,-684.13223078,0.00026797,2]
[313398736,1707301841289,-155.01860223,0.00026797,2]
[313398737,1707301841298,-21149.00416249,0.00026799,2]
[313398798,1707301843021,-962.23909208,0.00026799,2]
[313398845,1707303032039,-155.01860223,0.0002408,4]
[313398846,1707303032048,-1961.03902914,0.00024081,2]
[313398847,1707303032058,-1859.71951506,0.00024082,2]
[313398848,1707303032067,-50.51194914,0.00024699,2]
[313398870,1707303038327,-424.18232111,0.00024699,2]
[313398871,1707303038337,-14575.81767889,0.00024789,2]
[313398897,1707303041326,-251.39133245,0.00024789,2]
[313398904,1707303041381,-673.87184948,0.00024789,2]
[313398957,1707303044343,-2087.68000233,0.00024789,2]
[313398958,1707303044397,-404.8584929,0.00024789,2]
[313399009,1707303046263,-908.21571175,0.00024789,2]
[313399010,1707303046280,-848.91083595,0.00024789,2]
[313399012,1707303233559,4308.61356369,0.0001631,2]
[313399014,1707303295466,622.47720298,0.0001631,2]
[313399015,1707303303804,1013.29431932,0.0001631,2]
[313399016,1707303305100,10321.20056865,0.0001631,2]
[313399017,1707303305870,684.13223078,0.0001631,2]
[313399018,1707303308040,344.03161985,0.0001631,2]
[313399019,1707303311443,622.47720298,0.0001631,2]
[313399020,1707303315864,155.02015262,0.0001631,2]
[313399021,1707303321082,4373.96616013,0.0001631,2]
[313399022,1707303321795,1013.29431932,0.0001631,2]
[313399023,1707303323877,684.13223078,0.0001631,2]
[313399024,1707303329849,203.70204514,0.0001631,2]
[313399025,1707303332033,344.03161985,0.0001631,2]
[313399026,1707303333435,470.89143002,0.0001631,2]
[313399027,1707303341817,1013.29431932,0.0001631,2]
[313399028,1707303345877,684.13223078,0.0001631,2]
[313399029,1707303350037,340.2594754,0.0001631,2]
[313399030,1707303357804,1013.29431932,0.0001631,2]
[313399031,1707303365868,684.13223078,0.0001631,2]
[313399032,1707303375793,1013.29431932,0.0001631,2]
[313399033,1707303385875,684.13223078,0.0001631,2]
[313399034,1707303397809,1013.29431932,0.0001631,2]
[313399035,1707303405871,684.13223078,0.0001631,2]
[313399036,1707303422058,684.13223078,0.0001631,2]
[313399037,1707303422504,1013.29431932,0.0001631,2]
[313399038,1707303439874,684.13223078,0.0001631,2]
[313399039,1707303440496,1013.29431932,0.0001631,2]
[313399040,1707303458559,639.00425677,0.0001631,2]
[313399041,1707303459876,684.13223078,0.0001631,2]
[313399042,1707303479877,717.02117618,0.0001631,2]
[313399043,1707303843026,1096.83482457,0.0001631,2]
[313399044,1707303861032,1096.83482457,0.0001631,2]
[313399045,1707303883029,1096.83482457,0.0001631,2]
[313399046,1707303901043,1096.83482457,0.0001631,2]
[313399047,1707303917035,1096.83482457,0.0001631,2]
[313399048,1707303933038,1096.83482457,0.0001631,2]
[313399049,1707303949360,100240.10164025,0.0001631,2]
[313399050,1707303949386,829.0,0.0001631,2]
[313399051,1707303949411,160689.53185293,0.0001631,2]
[313399052,1707303951035,1096.83482457,0.0001631,2]
[313399053,1707303967043,857.26337798,0.0001631,2]
[313399054,1707304042877,152.86835164,0.00016228,2]
[313399091,1707304232241,-155.01860223,0.00022589,4]
[313399092,1707304232251,-1859.71951506,0.00022589,2]
[313399093,1707304232261,-7446.37541419,0.0002259,2]
[313399094,1707304232270,-1687.29456415,0.00022688,2]
[313399095,1707304232280,-316.46284684,0.00022689,2]
[313399096,1707304232289,-12038.298247,0.00023056,2]
[313399097,1707304232299,-420.61625587,0.00024856,2]
[313399098,1707304232308,-200.0,0.00024956,7]
[313399099,1707304232317,-1386.68,0.0002499,3]
[313399100,1707304232326,-1155.56,0.0002499,3]
[313399101,1707304232336,-2835.28260096,0.00025,3]
[313399102,1707304232345,-27985.10727914,0.00025,3]
[313399103,1707304232357,-486.03262571,0.00025,3]
[313399110,1707304238364,-588.73821695,0.00025,3]
[313399111,1707304238419,-4176.64295083,0.00025,3]
[313399112,1707304238432,-994.40372844,0.00025,3]
[313399159,1707304246368,-906.16625216,0.00024999,2]
[313399160,1707304246379,-6957.33234563,0.00025,3]
[313399161,1707304246391,-966.94831473,0.00025,3]
[313399256,1707305432459,-155.02015262,0.00022899,4]
[313399259,1707305432469,-191.16159006,0.000229,2]
[313399262,1707305432481,-19.81364116,0.000229,2]
[313399265,1707305432490,-289.79940515,0.00023267,2]
[313399269,1707305432503,-1569.92010991,0.00023267,2]
[313399272,1707305432512,-3884.79276534,0.00023268,2]
[313399314,1707305438719,-1742.64759182,0.00023266,2]
[313399315,1707305438775,-1082.64271889,0.00023266,2]
[313399316,1707305438784,-2720.17770525,0.00023268,2]
[313399360,1707305441737,-2785.82,0.00023268,2]
[313399361,1707305442267,-464.72982756,0.00023268,2]
[313399362,1707305442279,-1157.21325936,0.00023268,2]
[313399363,1707305442291,-360.7716,0.00023268,2]
[313399364,1707305442303,-1000.0,0.00023268,2]
[313399394,1707305443510,-4261.0,0.00023268,2]
[313399395,1707305443522,-3196.51754099,0.00023268,2]
[313399396,1707305443530,-169.58374,0.0002359,2]
[313399397,1707305443539,-379.44833173,0.00024248,5]
[313399398,1707305443549,-962.97,0.0002499,3]
[313399399,1707305443558,-802.48,0.0002499,3]
[313399400,1707305443567,-140.09377724,0.0002499,3]
[313399401,1707305443588,-528.63622276,0.0002499,3]
[313399402,1707305443598,-557.27,0.0002499,3]
[313399403,1707305443607,-2109.6618422,0.00024998,2]
[313399404,1707305443617,-326.22152252,0.00024998,2]
[313399406,1707305443628,-155.02015262,0.00024999,2]
[313399407,1707305443638,-676.47434285,0.00025,3]
[313399408,1707305443652,-23052.17572763,0.00025,3]
[313399409,1707305443662,-683.46496987,0.00025,2]
[313399410,1707305443672,-156.47751779,0.00025,2]
[313399411,1707305443683,-55835.2856803,0.00025,7]
[313399412,1707305443693,-1096.83482457,0.00025,2]
[313399413,1707305443703,-1652.44337949,0.00025,2]
[313399414,1707305443714,-155.02015262,0.00025,2]
[313399415,1707305443723,-551.49994927,0.00025247,2]
[313399416,1707305443733,-200.0,0.00025889,7]
[313399417,1707305443742,-151.0,0.000267,2]
[313399418,1707305443752,-500.0,0.000267,2]
[313399419,1707305443761,-5848.46839529,0.00026797,2]
[313399420,1707305443770,-1585.07327189,0.00026797,2]
[313399421,1707305443780,-1199.75820462,0.00026797,2]
[313399422,1707305443789,-1314.92681383,0.00026797,2]
[313399423,1707305443798,-310.02325182,0.00026797,2]
[313399424,1707305443807,-4495.12556647,0.00026797,2]
[313399425,1707305443816,-692.26861691,0.00026797,2]
[313399426,1707305443825,-182.01968802,0.00026797,2]
[313399427,1707305443834,-155.35093653,0.00026797,2]
[313399428,1707305443844,-331.4482259,0.00026797,2]
[313399429,1707305443853,-1687.29456415,0.00026797,2]
[313399430,1707305443862,-167.98778071,0.00026797,2]
[313399431,1707305443871,-2743.09739573,0.00026797,2]
[313399432,1707305443880,-259.7112316,0.00026797,2]
[313399433,1707305443890,-1407.5312618,0.00026797,2]
[313399434,1707305443899,-680.53747908,0.00026798,2]
[313399435,1707305443908,-15869.98835207,0.00026798,2]
[313399436,1707305443917,-151.0,0.00026798,2]
[313399437,1707305443927,-38707.29762292,0.00026799,2]
[313399438,1707305443936,-1836.36059013,0.00026799,2]
[313399439,1707305443945,-300.0,0.00026799,2]
[313399440,1707305443954,-496.66534948,0.00026799,2]
[313399441,1707305443963,-227.64707964,0.00026799,2]
[313399442,1707305443972,-151.0,0.00026799,2]
[313399443,1707305443981,-246.701892,0.00026799,2]
[313399444,1707305443990,-203.86884163,0.00026799,2]
[313399445,1707305444000,-500.0,0.00026799,2]
[313399446,1707305444009,-500.0,0.00026799,2]
[313399447,1707305444018,-500.0,0.00026799,2]
[313399448,1707305444027,-326.18915854,0.00026799,2]